[Event "23rd ETCC Women 2021"]
[Site "Catez"]
[Date "2021.11.16"]
[Round "5.49"]
[White "Ptacnikova, Lenka"]
[Black "Hrescak, Ivana"]
[Result "0-1"]
[ECO "B34"]
[WhiteElo "2200"]
[BlackElo "2138"]
[Annotator "NA"]
[PlyCount "42"]
[EventDate "2021.11.08"]
[EventType "team-tourn"]
[EventCountry "SLO"]
[SourceTitle "playchess.com"]
[Source "ChessBase"]
[SourceQuality "1"]
[WhiteTeam "Iceland"]
[BlackTeam "Slovenia"]
[WhiteTeamCountry "ISL"]
[BlackTeamCountry "SLO"]
[TimeControl "40/5400+30:1800+30"]

1. e4 {[%emt 0:00:02]} c5 {[%emt 0:00:06]} 2. Nc3 {[%emt 0:00:11]} Nc6 {
[%emt 0:00:19]} 3. Nge2 {[%emt 0:00:53]} g6 {[%emt 0:01:46]} 4. d4 {[%emt 0:00:
22]} cxd4 {[%emt 0:00:05]} 5. Nxd4 {[%emt 0:00:03]} Bg7 {[%emt 0:00:08]} 6.
Nde2 {[%emt 0:00:09]} d6 {[%emt 0:01:53]} 7. g3 {[%emt 0:01:23]} Bg4 {[%emt 0:
02:39]} 8. Bg2 {[%emt 0:00:56]} Qc8 {[%emt 0:03:17]} 9. h3 {[%emt 0:00:49]} Bd7
{[%emt 0:00:16]} 10. Nd5 {[%emt 0:11:22]} Nf6 {[%emt 0:04:57]} 11. O-O {
[%emt 0:06:12]} Ne5 {[%emt 0:12:07]} 12. Nef4 {[%emt 0:12:07]} Nxd5 {[%emt 0:
05:58]} 13. exd5 {[%emt 0:01:12]} h5 {[%emt 0:08:33]} 14. Re1 {[%emt 0:04:43]}
Bf6 {[%emt 0:16:44]} 15. Qe2 {[%emt 0:17:33]} Bf5 {[%emt 0:07:40]} 16. c3 {
[%emt 0:01:39]} Kf8 {[%emt 0:04:01]} 17. Kh2 {[%emt 0:04:16]} g5 {[%emt 0:10:
03]} 18. Nxh5 {[%emt 0:00:12]} Bxh3 {[%emt 0:01:34]} 19. Bxh3 {[%emt 0:01:53]}
g4 {[%emt 0:00:08]} 20. Bg2 {[%emt 0:03:40]} Qf5 {[%emt 0:03:56]} 21. f4 {
[%emt 0:03:06]} gxf3 {[%emt 0:01:31]} 0-1

[Event "23rd ETCC Women 2021"]
[Site "Catez"]
[Date "2021.11.16"]
[Round "5.50"]
[White "Kolaric, Spela"]
[Black "Thorsteinsdottir, Hallgerdur"]
[Result "1/2-1/2"]
[ECO "D02"]
[WhiteElo "2178"]
[BlackElo "2010"]
[Annotator "RC"]
[PlyCount "226"]
[EventDate "2021.11.08"]
[EventType "team-tourn"]
[EventCountry "SLO"]
[SourceTitle "playchess.com"]
[Source "ChessBase"]
[SourceQuality "1"]
[WhiteTeam "Slovenia"]
[BlackTeam "Iceland"]
[WhiteTeamCountry "SLO"]
[BlackTeamCountry "ISL"]
[TimeControl "40/5400+30:1800+30"]

1. d4 {[%emt 0:00:12]} Nf6 {[%emt 0:00:12]} 2. Nf3 {[%emt 0:00:11]} g6 {
[%emt 0:00:21]} 3. Bf4 {[%emt 0:00:16]} Bg7 {[%emt 0:00:54]} 4. e3 {[%emt 0:00:
11]} O-O {[%emt 0:01:59]} 5. Be2 {[%emt 0:00:21]} c5 {[%emt 0:10:45]} 6. c3 {
[%emt 0:00:47]} d5 {[%emt 0:01:48]} 7. h3 {[%emt 0:00:14]} b6 {[%emt 0:01:24]}
8. O-O {[%emt 0:00:22]} Ba6 {[%emt 0:01:27]} 9. Bxa6 {[%emt 0:07:04]} Nxa6 {
[%emt 0:00:09]} 10. Nbd2 {[%emt 0:01:30]} Re8 {[%emt 0:02:57]} 11. Bh2 {
[%emt 0:05:08]} Nd7 {[%emt 0:07:40]} 12. Qa4 {[%emt 0:03:55]} Nc7 {[%emt 0:05:
30]} 13. Rad1 {[%emt 0:09:43]} a5 {[%emt 0:05:52]} 14. Qc6 {[%emt 0:04:15]} e5
{[%emt 0:01:10]} 15. Nxe5 {[%emt 0:04:48]} Nxe5 {[%emt 0:04:37]} 16. Bxe5 {
[%emt 0:01:22]} Bxe5 {[%emt 0:00:36]} 17. dxe5 {[%emt 0:00:04]} Re6 {[%emt 0:
00:47]} 18. Qa4 {[%emt 0:00:58]} Rxe5 {[%emt 0:01:30]} 19. Nf3 {[%emt 0:02:19]}
Re4 {[%emt 0:03:11]} 20. Qc2 {[%emt 0:01:52]} Qe7 {[%emt 0:03:01]} 21. Rd2 {
[%emt 0:02:26]} b5 {[%emt 0:05:08]} 22. Rc1 {[%emt 0:04:18]} a4 {[%emt 0:03:18]
} 23. Qd1 {[%emt 0:04:46]} Ra6 {[%emt 0:09:58]} 24. Ne1 {[%emt 0:07:31]} h6 {
[%emt 0:07:14]} 25. b3 {[%emt 0:03:01]} Rae6 {[%emt 0:05:28]} 26. Nf3 {[%emt 0:
01:12]} axb3 {[%emt 0:02:45]} 27. axb3 {[%emt 0:00:29]} Qf6 {[%emt 0:02:40]}
28. b4 {[%emt 0:04:04]} cxb4 {[%emt 0:00:15]} 29. cxb4 {[%emt 0:00:06]} Rc4 {
[%emt 0:02:16]} 30. Nd4 {[%emt 0:00:45]} Ra6 {[%emt 0:00:20]} 31. Rdc2 {
[%emt 0:00:35]} Qd6 {[%emt 0:01:26]} 32. Rb1 {[%emt 0:05:24]} Ra7 {[%emt 0:00:
18]} 33. Rcb2 {[%emt 0:01:33]} Ra3 {[%emt 0:01:20]} 34. Qg4 {[%emt 0:04:21]}
Rac3 {[%emt 0:01:30]} 35. Qd1 {[%emt 0:01:39]} Ra3 {[%emt 0:00:24]} 36. Qd2 {
[%emt 0:00:31]} Ra4 {[%emt 0:00:53]} 37. Rb3 {[%emt 0:02:38]} h5 {[%emt 0:00:
36]} 38. Ne2 {[%emt 0:02:47]} Kh7 {[%emt 0:03:22]} 39. Qb2 {[%emt 0:02:07]} Na6
{[%emt 0:01:01]} 40. Nc3 {[%emt 0:02:30]} Raxb4 {[%emt 0:00:32]} 41. Nxb5 {
[%emt 0:34:39]} Qc5 {[%emt 0:05:26]} 42. Nd4 {[%emt 0:00:00]} Rxb3 {[%emt 0:01:
48]} 43. Qxb3 {[%emt 0:00:00]} Nb4 {[%emt 0:03:25]} 44. Qd1 {[%emt 0:00:00]}
Nc6 {[%emt 0:01:33]} 45. Qf3 {[%emt 0:00:00]} Ne5 {[%emt 0:03:01]} 46. Qf6 {
[%emt 0:00:00]} Rc1+ {[%emt 0:00:51]} 47. Rxc1 {[%emt 0:00:00]} Qxc1+ {[%emt 0:
00:06]} 48. Kh2 {[%emt 0:00:00]} Qc7 {[%emt 0:00:24]} 49. g3 {[%emt 0:00:00]}
Kg8 {[%emt 0:02:08]} 50. Kg2 {[%emt 0:00:00]} Nd3 {[%emt 0:01:24]} 51. Nc6 {
[%emt 0:00:00]} Kh7 {[%emt 0:08:10]} 52. Ne7 {[%emt 0:00:00]} Ne5 {[%emt 0:00:
36]} 53. Nxd5 {[%emt 0:00:00]} Qb8 {[%emt 0:00:12]} 54. e4 {[%emt 0:00:00]} Kg8
{[%emt 0:01:25]} 55. Qe7 {[%emt 0:01:58]} Nc6 {[%emt 0:02:12]} 56. Qf6 {
[%emt 0:03:57]} Ne5 {[%emt 0:00:18]} 57. Qf4 {[%emt 0:07:12]} Kg7 {[%emt 0:01:
24]} 58. g4 {[%emt 0:00:53]} hxg4 {[%emt 0:00:20]} 59. hxg4 {[%emt 0:00:02]}
Qd6 {[%emt 0:02:40]} 60. g5 {[%emt 0:00:17]} Qe6 {[%emt 0:01:10]} 61. Nf6 {
[%emt 0:00:41]} Nd7 {[%emt 0:01:33]} 62. Ng4 {[%emt 0:00:46]} Nc5 {[%emt 0:00:
38]} 63. e5 {[%emt 0:02:04]} Nd7 {[%emt 0:01:44]} 64. Kg3 {[%emt 0:00:52]} Qf5
{[%emt 0:01:09]} 65. Nf6 {[%emt 0:00:27]} Qxf4+ {[%emt 0:01:42]} 66. Kxf4 {
[%emt 0:00:07]} Nf8 {[%emt 0:00:08]} 67. Ke4 {[%emt 0:00:19]} Ne6 {[%emt 0:00:
22]} 68. f4 {[%emt 0:00:06]} Kf8 {[%emt 0:00:17]} 69. Nd5 {[%emt 0:00:22]} Ke8
{[%emt 0:00:57]} 70. Kf3 {[%emt 0:00:04]} Nd4+ {[%emt 0:00:49]} 71. Kg4 {
[%emt 0:00:20]} Nf5 {[%emt 0:00:17]} 72. Kf3 {[%emt 0:01:18]} Kd7 {[%emt 0:00:
07]} 73. Nc3 {[%emt 0:01:32]} Ke6 {[%emt 0:00:11]} 74. Ne4 {[%emt 0:00:30]} Kd5
{[%emt 0:00:38]} 75. Nf6+ {[%emt 0:00:02]} Ke6 {[%emt 0:00:08]} 76. Ng4 {
[%emt 0:00:22]} Ng7 {[%emt 0:00:32]} 77. Ke4 {[%emt 0:00:48]} Nf5 {[%emt 0:00:
48]} 78. Nh6 {[%emt 0:00:00]} Ng7 {[%emt 0:00:48]} 79. Ke3 {[%emt 0:00:22]} Nh5
{[%emt 0:00:22]} 80. Kf3 {[%emt 0:00:26]} Ng7 {[%emt 0:00:14]} 81. Kg4 {
[%emt 0:00:10]} Ne8 {[%emt 0:00:24]} 82. Kf3 {[%emt 0:01:25]} Ng7 {[%emt 0:00:
06]} 83. Ke4 {[%emt 0:00:06]} Ne8 {[%emt 0:00:49]} 84. f5+ {[%emt 0:00:08]}
gxf5+ {[%emt 0:00:19]} 85. Nxf5 {[%emt 0:00:04]} Nc7 {[%emt 0:00:26]} 86. Nd4+
{[%emt 0:00:14]} Ke7 {[%emt 0:00:27]} 87. Kf5 {[%emt 0:00:25]} Nd5 {[%emt 0:01:
14]} 88. Nc2 {[%emt 0:01:12]} Kf8 {[%emt 0:00:18]} 89. Nd4 {[%emt 0:01:03]}
Ne7+ {[%emt 0:00:16]} 90. Ke4 {[%emt 0:00:10]} Ng6 {[%emt 0:00:27]} 91. Nf5 {
[%emt 0:00:03]} Ke8 {[%emt 0:00:27]} 92. Nd4 {[%emt 0:01:57]} Ne7 {[%emt 0:00:
23]} 93. e6 {[%emt 0:00:15]} fxe6 {[%emt 0:00:10]} 94. Nxe6 {[%emt 0:00:02]}
Kf7 {[%emt 0:00:12]} 95. Nf4 {[%emt 0:00:14]} Kg7 {[%emt 0:00:21]} 96. Kf3 {
[%emt 0:00:28]} Nf5 {[%emt 0:00:29]} 97. Kg4 {[%emt 0:00:07]} Ne7 {[%emt 0:01:
13]} 98. Kh5 {[%emt 0:00:06]} Kh7 {[%emt 0:00:33]} 99. Ne6 {[%emt 0:00:33]} Ng6
{[%emt 0:00:31]} 100. Kg4 {[%emt 0:00:06]} Ne7 {[%emt 0:00:14]} 101. Kf4 {
[%emt 0:00:06]} Kg6 {[%emt 0:00:21]} 102. Nf8+ {[%emt 0:00:41]} Kf7 {[%emt 0:
00:22]} 103. Nd7 {[%emt 0:00:15]} Kg6 {[%emt 0:00:32]} 104. Ne5+ {[%emt 0:00:
03]} Kg7 {[%emt 0:01:02]} 105. Nf3 {[%emt 0:01:25]} Ng6+ {[%emt 0:00:58]} 106.
Kf5 {[%emt 0:00:33]} Ne7+ {[%emt 0:01:18]} 107. Ke6 {[%emt 0:00:09]} Ng6 {
[%emt 0:00:11]} 108. Nd4 {[%emt 0:00:17]} Nf8+ {[%emt 0:00:46]} 109. Kf5 {
[%emt 0:00:11]} Kf7 {[%emt 0:00:25]} 110. Nc6 {[%emt 0:00:34]} Kg7 {[%emt 0:00:
23]} 111. Ne5 {[%emt 0:00:08]} Nh7 {[%emt 0:00:21]} 112. g6 {[%emt 0:00:18]}
Nf8 {[%emt 0:00:09]} 113. Kg5 {[%emt 0:00:07]} Nxg6 {[%emt 0:00:06]} 1/2-1/2

[Event "23rd ETCC Women 2021"]
[Site "Catez"]
[Date "2021.11.16"]
[Round "5.51"]
[White "Johannsdottir, Johanna Bjorg"]
[Black "Ruzic, Pia Marie"]
[Result "0-1"]
[ECO "C01"]
[WhiteElo "1952"]
[BlackElo "2049"]
[Annotator "NA"]
[PlyCount "38"]
[EventDate "2021.11.08"]
[EventType "team-tourn"]
[EventCountry "SLO"]
[SourceTitle "playchess.com"]
[Source "ChessBase"]
[SourceQuality "1"]
[WhiteTeam "Iceland"]
[BlackTeam "Slovenia"]
[WhiteTeamCountry "ISL"]
[BlackTeamCountry "SLO"]
[TimeControl "40/5400+30:1800+30"]

1. e4 {[%emt 0:00:03]} e6 {[%emt 0:00:08]} 2. d4 {[%emt 0:00:06]} d5 {[%emt 0:
00:06]} 3. Nd2 {[%emt 0:00:05]} c5 {[%emt 0:00:08]} 4. c3 {[%emt 0:01:16]} Nc6
{[%emt 0:05:23]} 5. dxc5 {[%emt 0:06:06]} Bxc5 {[%emt 0:01:02]} 6. exd5 {
[%emt 0:01:20]} exd5 {[%emt 0:01:04]} 7. Nb3 {[%emt 0:02:11]} Bb6 {[%emt 0:01:
02]} 8. Nf3 {[%emt 0:00:21]} Nf6 {[%emt 0:03:21]} 9. Bd3 {[%emt 0:01:51]} O-O {
[%emt 0:00:49]} 10. O-O {[%emt 0:00:06]} Bg4 {[%emt 0:02:15]} 11. Bg5 {[%emt 0:
02:06]} Qd6 {[%emt 0:12:57]} 12. Be2 {[%emt 0:05:00]} Rfe8 {[%emt 0:09:14]} 13.
Nbd4 {[%emt 0:06:51]} Nxd4 {[%emt 0:23:23]} 14. Nxd4 {[%emt 0:01:43]} Rxe2 {
[%emt 0:00:24]} 15. f3 {[%emt 0:13:50]} Rae8 {[%emt 0:09:39]} 16. Bxf6 {
[%emt 0:02:46]} Qxf6 {[%emt 0:01:17]} 17. fxg4 {[%emt 0:00:09]} Qh4 {[%emt 0:
00:25]} 18. Kh1 {[%emt 0:01:45]} Bc7 {[%emt 0:01:35]} 19. h3 {[%emt 0:01:28]}
Qg3 {[%emt 0:00:32]} 0-1

[Event "23rd ETCC Women 2021"]
[Site "Catez"]
[Date "2021.11.16"]
[Round "5.52"]
[White "Hercog, Nusa"]
[Black "Hauksdottir, Hrund"]
[Result "1-0"]
[ECO "D36"]
[WhiteElo "1983"]
[BlackElo "1731"]
[Annotator "NA"]
[PlyCount "127"]
[EventDate "2021.11.08"]
[EventType "team-tourn"]
[EventCountry "SLO"]
[SourceTitle "playchess.com"]
[Source "ChessBase"]
[SourceQuality "1"]
[WhiteTeam "Slovenia"]
[BlackTeam "Iceland"]
[WhiteTeamCountry "SLO"]
[BlackTeamCountry "ISL"]
[TimeControl "40/5400+30:1800+30"]

1. d4 {[%emt 0:00:03]} d5 {[%emt 0:00:07]} 2. c4 {[%emt 0:00:06]} c6 {[%emt 0:
00:05]} 3. Nc3 {[%emt 0:00:05]} Nf6 {[%emt 0:00:11]} 4. Nf3 {[%emt 0:00:11]} e6
{[%emt 0:00:18]} 5. cxd5 {[%emt 0:00:18]} exd5 {[%emt 0:00:54]} 6. Qc2 {
[%emt 0:00:31]} Bd6 {[%emt 0:15:15]} 7. Bg5 {[%emt 0:00:54]} O-O {[%emt 0:06:
41]} 8. e3 {[%emt 0:00:51]} Nbd7 {[%emt 0:02:43]} 9. Bd3 {[%emt 0:02:02]} h6 {
[%emt 0:01:26]} 10. Bh4 {[%emt 0:01:18]} Re8 {[%emt 0:02:20]} 11. O-O-O {
[%emt 0:10:28]} b5 {[%emt 0:10:12]} 12. Kb1 {[%emt 0:07:34]} Qa5 {[%emt 0:21:
26]} 13. Nd2 {[%emt 0:12:50]} Qb6 {[%emt 0:07:02]} 14. Rde1 {[%emt 0:05:26]} a5
{[%emt 0:02:31]} 15. f3 {[%emt 0:03:28]} Bb4 {[%emt 0:06:38]} 16. g4 {[%emt 0:
10:14]} Bxc3 {[%emt 0:01:57]} 17. Qxc3 {[%emt 0:00:07]} b4 {[%emt 0:01:22]} 18.
Qc2 {[%emt 0:01:22]} c5 {[%emt 0:00:51]} 19. dxc5 {[%emt 0:15:51]} Nxc5 {
[%emt 0:01:00]} 20. Bxf6 {[%emt 0:03:13]} Nxd3 {[%emt 0:01:30]} 21. Qxd3 {
[%emt 0:01:10]} Qxf6 {[%emt 0:00:06]} 22. Qxd5 {[%emt 0:07:57]} Be6 {[%emt 0:
01:16]} 23. Qd3 {[%emt 0:01:03]} Red8 {[%emt 0:00:57]} 24. Qe2 {[%emt 0:00:21]}
a4 {[%emt 0:02:11]} 25. Ne4 {[%emt 0:01:13]} Qe7 {[%emt 0:00:31]} 26. Ng3 {
[%emt 0:05:51]} a3 {[%emt 0:07:03]} 27. b3 {[%emt 0:00:56]} Bxb3 {[%emt 0:02:
13]} 28. axb3 {[%emt 0:03:11]} a2+ {[%emt 0:00:09]} 29. Ka1 {[%emt 0:00:15]}
Qf6+ {[%emt 0:00:11]} 30. Qb2 {[%emt 0:00:04]} Qxb2+ {[%emt 0:01:37]} 31. Kxb2
{[%emt 0:00:04]} Rd2+ {[%emt 0:00:13]} 32. Ka1 {[%emt 0:00:05]} Rd3 {[%emt 0:
00:31]} 33. Re2 {[%emt 0:02:01]} Rxb3 {[%emt 0:01:14]} 34. Rxa2 {[%emt 0:00:16]
} Rxa2+ {[%emt 0:00:29]} 35. Kxa2 {[%emt 0:00:03]} Rxe3 {[%emt 0:00:18]} 36.
Rf1 {[%emt 0:01:20]} g6 {[%emt 0:00:59]} 37. Rf2 {[%emt 0:01:54]} Kg7 {[%emt 0:
02:43]} 38. f4 {[%emt 0:00:40]} Ra3+ {[%emt 0:01:02]} 39. Kb2 {[%emt 0:00:12]}
Ra6 {[%emt 0:00:45]} 40. Kb3 {[%emt 0:00:36]} Rb6 {[%emt 0:00:06]} 41. Re2 {
[%emt 0:33:49]} Rd6 {[%emt 0:31:24]} 42. Kc4 {[%emt 0:00:00]} b3 {[%emt 0:00:
00]} 43. Kxb3 {[%emt 0:00:00]} Rd4 {[%emt 0:00:00]} 44. Rf2 {[%emt 0:00:00]}
Kf6 {[%emt 0:00:00]} 45. Kc3 {[%emt 0:00:00]} Ra4 {[%emt 0:00:00]} 46. Kd3 {
[%emt 0:00:00]} Ra3+ {[%emt 0:00:00]} 47. Ke4 {[%emt 0:00:00]} Ra4+ {[%emt 0:
00:00]} 48. Kf3 {[%emt 0:00:00]} Ra3+ {[%emt 0:00:00]} 49. Kg2 {[%emt 0:00:00]}
Ra4 {[%emt 0:00:00]} 50. h3 {[%emt 0:00:00]} Kg7 {[%emt 0:00:00]} 51. f5 {
[%emt 0:00:00]} Ra6 {[%emt 0:00:00]} 52. Ne4 {[%emt 0:00:00]} f6 {[%emt 0:00:
00]} 53. fxg6 {[%emt 0:00:00]} Kxg6 {[%emt 0:00:00]} 54. Rf5 {[%emt 0:00:00]}
Kg7 {[%emt 0:00:00]} 55. Kg3 {[%emt 0:00:00]} Kg6 {[%emt 0:00:00]} 56. Kf4 {
[%emt 0:00:00]} Rb6 {[%emt 0:00:00]} 57. Rxf6+ {[%emt 0:00:00]} Rxf6+ {[%emt 0:
00:00]} 58. Nxf6 {[%emt 0:00:00]} Kxf6 {[%emt 0:00:00]} 59. h4 {[%emt 0:00:00]}
Kg6 {[%emt 0:00:00]} 60. Ke5 {[%emt 0:00:00]} Kf7 {[%emt 0:00:00]} 61. Kf5 {
[%emt 0:00:00]} Kg7 {[%emt 0:00:00]} 62. Ke6 {[%emt 0:00:00]} Kg6 {[%emt 0:00:
00]} 63. Ke7 {[%emt 0:00:00]} Kg7 {[%emt 0:00:00]} 64. h5 {[%emt 0:00:00]} 1-0

[Event "23rd ETCC Women 2021"]
[Site "Catez"]
[Date "2021.11.16"]
[Round "5.53"]
[White "Dolzhikova, Olga"]
[Black "Hapala, Elisabeth"]
[Result "0-1"]
[ECO "B22"]
[WhiteElo "2187"]
[BlackElo "2139"]
[Annotator "NA"]
[PlyCount "64"]
[EventDate "2021.11.08"]
[EventType "team-tourn"]
[EventCountry "SLO"]
[SourceTitle "playchess.com"]
[Source "ChessBase"]
[SourceQuality "1"]
[WhiteTeam "Norway"]
[BlackTeam "Austria"]
[WhiteTeamCountry "NOR"]
[BlackTeamCountry "AUT"]
[TimeControl "40/5400+30:1800+30"]

1. e4 {[%emt 0:00:41]} c5 {[%emt 0:00:07]} 2. c3 {[%emt 0:00:11]} Nf6 {[%emt 0:
00:04]} 3. e5 {[%emt 0:00:04]} Nd5 {[%emt 0:00:03]} 4. d4 {[%emt 0:00:03]} cxd4
{[%emt 0:00:04]} 5. Nf3 {[%emt 0:00:13]} e6 {[%emt 0:00:05]} 6. cxd4 {[%emt 0:
00:08]} d6 {[%emt 0:00:20]} 7. Bc4 {[%emt 0:00:27]} Be7 {[%emt 0:00:18]} 8. O-O
{[%emt 0:00:09]} O-O {[%emt 0:00:05]} 9. Qe2 {[%emt 0:00:09]} Bd7 {[%emt 0:00:
30]} 10. Nc3 {[%emt 0:02:51]} Nxc3 {[%emt 0:00:29]} 11. bxc3 {[%emt 0:00:04]}
Bc6 {[%emt 0:00:55]} 12. Bf4 {[%emt 0:04:41]} Qc7 {[%emt 0:00:46]} 13. Bb3 {
[%emt 0:01:47]} Nd7 {[%emt 0:03:21]} 14. Rfe1 {[%emt 0:05:19]} Bxf3 {[%emt 0:
10:43]} 15. Qxf3 {[%emt 0:00:09]} dxe5 {[%emt 0:00:04]} 16. dxe5 {[%emt 0:02:
02]} Rac8 {[%emt 0:00:48]} 17. Qg4 {[%emt 0:10:17]} Kh8 {[%emt 0:16:03]} 18.
Re3 {[%emt 0:00:58]} Rfd8 {[%emt 0:04:04]} 19. Rae1 {[%emt 0:05:50]} Nf8 {
[%emt 0:08:33]} 20. Bc2 {[%emt 0:10:30]} g6 {[%emt 0:06:59]} 21. Bh6 {[%emt 0:
13:00]} Kg8 {[%emt 0:06:24]} 22. Rf3 {[%emt 0:07:11]} Qc4 {[%emt 0:04:19]} 23.
Re4 {[%emt 0:12:07]} Qxa2 {[%emt 0:06:43]} 24. g3 {[%emt 0:00:48]} Rxc3 {
[%emt 0:08:25]} 25. Be3 {[%emt 0:12:37]} Rxe3 {[%emt 0:09:02]} 26. Rexe3 {
[%emt 0:02:37]} Qxc2 {[%emt 0:00:06]} 27. Kg2 {[%emt 0:02:59]} Nd7 {[%emt 0:04:
50]} 28. Qf4 {[%emt 0:01:30]} Rf8 {[%emt 0:01:27]} 29. Rc3 {[%emt 0:00:13]} Qb2
{[%emt 0:03:37]} 30. Rb3 {[%emt 0:02:43]} Qxe5 {[%emt 0:00:20]} 31. Rxb7 {
[%emt 0:00:09]} Qd5 {[%emt 0:00:32]} 32. Rxa7 {[%emt 0:02:36]} g5 {[%emt 0:03:
24]} 0-1

[Event "23rd ETCC Women 2021"]
[Site "Catez"]
[Date "2021.11.16"]
[Round "5.54"]
[White "Teuschler, Barbara"]
[Black "Machlik, Monika"]
[Result "0-1"]
[ECO "B19"]
[WhiteElo "2115"]
[BlackElo "2096"]
[Annotator "NA"]
[PlyCount "78"]
[EventDate "2021.11.08"]
[EventType "team-tourn"]
[EventCountry "SLO"]
[SourceTitle "playchess.com"]
[Source "ChessBase"]
[SourceQuality "1"]
[WhiteTeam "Austria"]
[BlackTeam "Norway"]
[WhiteTeamCountry "AUT"]
[BlackTeamCountry "NOR"]
[TimeControl "40/5400+30:1800+30"]

1. e4 {[%emt 0:00:02]} c6 {[%emt 0:00:04]} 2. d4 {[%emt 0:00:05]} d5 {[%emt 0:
00:03]} 3. Nc3 {[%emt 0:00:07]} dxe4 {[%emt 0:00:11]} 4. Nxe4 {[%emt 0:00:05]}
Bf5 {[%emt 0:00:11]} 5. Ng3 {[%emt 0:00:11]} Bg6 {[%emt 0:00:04]} 6. h4 {
[%emt 0:00:04]} h6 {[%emt 0:00:04]} 7. Nf3 {[%emt 0:00:06]} Nd7 {[%emt 0:00:05]
} 8. h5 {[%emt 0:00:06]} Bh7 {[%emt 0:00:03]} 9. Bd3 {[%emt 0:00:02]} Bxd3 {
[%emt 0:00:06]} 10. Qxd3 {[%emt 0:00:03]} e6 {[%emt 0:00:10]} 11. Bd2 {[%emt 0:
00:19]} Ngf6 {[%emt 0:00:33]} 12. O-O-O {[%emt 0:00:16]} Be7 {[%emt 0:00:31]}
13. Ne4 {[%emt 0:00:44]} Nxe4 {[%emt 0:00:18]} 14. Qxe4 {[%emt 0:00:02]} Nf6 {
[%emt 0:00:08]} 15. Qd3 {[%emt 0:01:03]} c5 {[%emt 0:01:11]} 16. Kb1 {[%emt 0:
25:00]} O-O {[%emt 0:09:12]} 17. g4 {[%emt 0:00:48]} Nxg4 {[%emt 0:05:47]} 18.
Qe2 {[%emt 0:00:10]} Qb6 {[%emt 0:10:40]} 19. Rhg1 {[%emt 0:16:16]} f5 {
[%emt 0:02:37]} 20. Ne5 {[%emt 0:00:47]} Nxe5 {[%emt 0:07:51]} 21. dxe5 {
[%emt 0:00:02]} f4 {[%emt 0:32:03]} 22. Qg4 {[%emt 0:20:39]} Bg5 {[%emt 0:01:
47]} 23. Bc1 {[%emt 0:00:25]} Rad8 {[%emt 0:02:57]} 24. Rxd8 {[%emt 0:00:22]}
Rxd8 {[%emt 0:01:02]} 25. c3 {[%emt 0:03:40]} Qc6 {[%emt 0:02:30]} 26. Ka1 {
[%emt 0:00:16]} Kh8 {[%emt 0:03:39]} 27. a3 {[%emt 0:00:34]} Rf8 {[%emt 0:05:
06]} 28. Re1 {[%emt 0:15:24]} Qd5 {[%emt 0:02:18]} 29. c4 {[%emt 0:06:31]} Qxc4
{[%emt 0:01:37]} 30. Bd2 {[%emt 0:00:01]} Rd8 {[%emt 0:03:05]} 31. Bc3 {
[%emt 0:00:49]} b5 {[%emt 0:00:34]} 32. Rd1 {[%emt 0:00:38]} Rxd1+ {[%emt 0:03:
55]} 33. Qxd1 {[%emt 0:00:01]} Qd5 {[%emt 0:00:46]} 34. Qc2 {[%emt 0:00:28]}
Qh1+ {[%emt 0:01:33]} 35. Ka2 {[%emt 0:00:01]} Qxh5 {[%emt 0:00:15]} 36. Qb3 {
[%emt 0:00:01]} Qe8 {[%emt 0:00:35]} 37. Ba5 {[%emt 0:05:57]} Qd7 {[%emt 0:00:
48]} 38. Ka1 {[%emt 0:00:05]} c4 {[%emt 0:02:35]} 39. Qb4 {[%emt 0:01:16]} Qd1+
{[%emt 0:01:47]} 0-1

[Event "23rd ETCC Women 2021"]
[Site "Catez"]
[Date "2021.11.17"]
[Round "5.55"]
[White "Machlik, Edit"]
[Black "Froewis, Annika"]
[Result "1/2-1/2"]
[ECO "D36"]
[WhiteElo "2087"]
[BlackElo "2079"]
[Annotator "NA"]
[PlyCount "82"]
[EventDate "2021.11.08"]
[EventType "team-tourn"]
[EventCountry "SLO"]
[SourceTitle "playchess.com"]
[Source "ChessBase"]
[SourceQuality "1"]
[WhiteTeam "Norway"]
[BlackTeam "Austria"]
[WhiteTeamCountry "NOR"]
[BlackTeamCountry "AUT"]
[TimeControl "40/5400+30:1800+30"]

1. d4 {[%emt 0:00:02]} d5 {[%emt 0:00:05]} 2. c4 {[%emt 0:00:05]} e6 {[%emt 0:
00:03]} 3. Nc3 {[%emt 0:00:37]} Nf6 {[%emt 0:00:05]} 4. cxd5 {[%emt 0:00:07]}
exd5 {[%emt 0:00:05]} 5. Bg5 {[%emt 0:00:06]} Be7 {[%emt 0:00:08]} 6. e3 {
[%emt 0:00:26]} c6 {[%emt 0:00:17]} 7. Qc2 {[%emt 0:00:07]} Nbd7 {[%emt 0:00:
17]} 8. Bd3 {[%emt 0:00:59]} h6 {[%emt 0:00:49]} 9. Bh4 {[%emt 0:00:53]} O-O {
[%emt 0:00:18]} 10. Nf3 {[%emt 0:01:09]} Re8 {[%emt 0:02:15]} 11. O-O {[%emt 0:
02:28]} Nh5 {[%emt 0:01:11]} 12. Bxe7 {[%emt 0:03:18]} Qxe7 {[%emt 0:00:02]}
13. Rab1 {[%emt 0:01:25]} a5 {[%emt 0:00:14]} 14. a3 {[%emt 0:01:47]} Nhf6 {
[%emt 0:00:15]} 15. b4 {[%emt 0:02:27]} axb4 {[%emt 0:00:19]} 16. axb4 {
[%emt 0:00:05]} b5 {[%emt 0:01:20]} 17. Ne2 {[%emt 0:20:55]} Bb7 {[%emt 0:01:
44]} 18. Nf4 {[%emt 0:14:58]} Ra4 {[%emt 0:04:41]} 19. Qc3 {[%emt 0:08:55]}
Rea8 {[%emt 0:01:15]} 20. Rb2 {[%emt 0:10:35]} Ra3 {[%emt 0:00:30]} 21. Rb3 {
[%emt 0:00:30]} Rxb3 {[%emt 0:00:30]} 22. Qxb3 {[%emt 0:00:30]} Nb6 {[%emt 0:
00:30]} 23. Qc3 {[%emt 0:00:30]} Nc4 {[%emt 0:00:30]} 24. Ra1 {[%emt 0:00:30]}
Rxa1+ {[%emt 0:00:30]} 25. Qxa1 {[%emt 0:00:30]} g5 {[%emt 0:00:30]} 26. Ne2 {
[%emt 0:00:30]} Nxe3 {[%emt 0:00:30]} 27. Ng3 {[%emt 0:00:30]} Nc4 {[%emt 0:00:
30]} 28. Qa7 {[%emt 0:00:30]} Nd6 {[%emt 0:00:30]} 29. Ne5 {[%emt 0:00:30]} Qc7
{[%emt 0:00:30]} 30. h3 {[%emt 0:00:30]} Nfe8 {[%emt 0:00:30]} 31. Nf5 {
[%emt 0:00:30]} Nxf5 {[%emt 0:00:30]} 32. Bxf5 {[%emt 0:00:30]} f6 {[%emt 0:00:
30]} 33. Nd7 {[%emt 0:00:30]} Kf7 {[%emt 0:00:30]} 34. Nc5 {[%emt 0:00:30]} Nd6
{[%emt 0:00:30]} 35. g4 {[%emt 0:00:30]} h5 {[%emt 0:00:30]} 36. Kg2 {[%emt 0:
00:30]} hxg4 {[%emt 0:00:30]} 37. hxg4 {[%emt 0:00:30]} Kg8 {[%emt 0:00:30]}
38. Be6+ {[%emt 0:00:30]} Kh7 {[%emt 0:00:30]} 39. Bf5+ {[%emt 0:00:30]} Kg8 {
[%emt 0:00:30]} 40. Be6+ {[%emt 0:00:30]} Kh7 {[%emt 0:00:30]} 41. Bf5+ {
[%emt 0:30:30]} Kg8 {[%emt 0:30:30]} 1/2-1/2